fUSD/lending_fUSD_20240518
["ID","MTS","AMOUNT","RATE_DAILY","PERIOD"]
[327423406,1716064258981,-522.49,0.00027671,2]
[327423407,1716064258990,-500.0,0.00027671,2]
[327423408,1716064258999,-500.0,0.00027671,2]
[327423409,1716064259009,-500.0,0.00027671,2]
[327423410,1716064259019,-500.0,0.00027671,2]
[327423411,1716064259029,-1505.44,0.00027671,2]
[327423412,1716064259040,-500.0,0.00027671,2]
[327423413,1716064259049,-1728.57,0.00027671,2]
[327423414,1716064259060,-519.73,0.00027671,2]
[327423415,1716064259069,-744.29,0.00027671,2]
[327423416,1716064259079,-725.07,0.00027671,2]
[327423417,1716064259088,-500.0,0.00027671,2]
[327423418,1716064259097,-500.0,0.00027671,2]
[327423419,1716064259107,-914.58,0.00027671,2]
[327423420,1716064259116,-660.08,0.00027671,2]
[327423421,1716064259127,-500.0,0.00027671,2]
[327423422,1716064259136,-506.48,0.00027671,2]
[327423423,1716064259146,-500.0,0.00027671,2]
[327423424,1716064259155,-519.19544752,0.00027671,2]
[327423425,1716064259164,-151.0,0.00027671,7]
[327423426,1716064259174,-500.0,0.00027671,2]
[327423427,1716064259183,-500.0,0.00027671,2]
[327423428,1716064259193,-500.0,0.00027671,2]
[327423429,1716064259202,-151.0,0.00027671,7]
[327423430,1716064259211,-710.62,0.00027671,2]
[327423431,1716064259220,-500.0,0.00027671,2]
[327423432,1716064259230,-1026.05,0.00027671,2]
[327423433,1716064259239,-500.0,0.00027671,2]
[327423434,1716064259250,-500.0,0.00027671,2]
[327423435,1716064259259,-1117.84,0.00027671,2]
[327423436,1716064259269,-500.0,0.00027671,2]
[327423437,1716064259278,-500.0,0.00027671,2]
[327423438,1716064259288,-2543.78,0.00027671,2]
[327423439,1716064259297,-500.0,0.00027671,2]
[327423440,1716064259306,-500.0,0.00027671,2]
[327423441,1716064259315,-500.0,0.00027671,2]
[327423442,1716064259325,-1001.21,0.00027671,2]
[327423443,1716064259334,-500.0,0.00027671,2]
[327423444,1716064259344,-500.0,0.00027671,2]
[327423445,1716064259353,-500.0,0.00027671,2]
[327423446,1716064259362,-500.0,0.00027671,2]
[327423447,1716064259371,-552.96374784,0.00027671,2]
[327423448,1716064259381,-500.0,0.00027671,2]
[327423449,1716064259390,-654.38,0.00027671,2]
[327423450,1716064259399,-500.0,0.00027671,2]
[327423451,1716064259409,-2068.33,0.00027671,2]
[327423452,1716064259418,-500.0,0.00027671,2]
[327423453,1716064259427,-506.70097873,0.00027671,2]
[327423454,1716064259436,-500.0,0.00027671,2]
[327423455,1716064259446,-551.15593109,0.00027671,2]
[327423456,1716064259455,-1067.86,0.00027671,2]
[327423457,1716064259465,-500.0,0.00027671,2]
[327423458,1716064259474,-500.0,0.00027671,2]
[327423459,1716064259484,-500.0,0.00027671,2]
[327423460,1716064259493,-536.24701597,0.00027671,2]
[327423461,1716064259503,-500.0,0.00027671,2]
[327423462,1716064259513,-569.14,0.00027671,2]
[327423463,1716064259522,-500.0,0.00027671,2]
[327423464,1716064259532,-500.0,0.00027671,2]
[327423465,1716064259541,-500.0,0.00027671,2]
[327423466,1716064259551,-500.0,0.00027671,2]
[327423467,1716064259561,-500.0,0.00027671,2]
[327423468,1716064259571,-169.915346,0.00027671,7]
[327423469,1716064259580,-500.0,0.00027671,2]
[327423470,1716064259589,-500.0,0.00027671,2]
[327423471,1716064259599,-739.53,0.00027671,2]
[327423472,1716064259608,-500.0,0.00027671,2]
[327423473,1716064259617,-1162.97,0.00027671,2]
[327423474,1716064259631,-916.72,0.00027671,2]
[327423475,1716064259640,-169.915346,0.00027671,7]
[327423476,1716064259649,-586.14,0.00027671,2]
[327423477,1716064259658,-500.0,0.00027671,2]
[327423478,1716064259669,-1575.56,0.00027671,2]
[327423479,1716064259678,-560.47,0.00027671,2]
[327423480,1716064259688,-1565.63,0.00027671,2]
[327423481,1716064259698,-500.0,0.00027671,2]
[327423482,1716064259708,-768.19,0.00027671,2]
[327423483,1716064259718,-500.0,0.00027671,2]
[327423484,1716064259727,-500.0,0.00027671,2]
[327423485,1716064259736,-500.0,0.00027671,2]
[327423486,1716064259746,-500.0,0.00027671,2]
[327423487,1716064259755,-500.0,0.00027671,2]
[327423488,1716064259764,-500.0,0.00027671,2]
[327423489,1716064259773,-1008.64,0.00027671,2]
[327423490,1716064259783,-500.0,0.00027671,2]
[327423491,1716064259792,-517.27,0.00027671,2]
[327423492,1716064259801,-500.0,0.00027671,2]
[327423493,1716064259811,-500.0,0.00027671,2]
[327423494,1716064259821,-1479.81,0.00027671,2]
[327423495,1716064259830,-151.0,0.00027671,7]
[327423496,1716064259839,-500.0,0.00027671,2]
[327423497,1716064259849,-534.34514455,0.00027671,2]
[327423498,1716064259858,-500.0,0.00027671,2]
[327423499,1716064259867,-1048.87,0.00027671,2]
[327423500,1716064259877,-500.0,0.00027671,2]
[327423501,1716064259886,-500.0,0.00027671,2]
[327423502,1716064259896,-500.0,0.00027671,2]
[327423503,1716064259905,-500.0,0.00027671,2]
[327423504,1716064259914,-500.0,0.00027671,2]
[327423505,1716064259924,-517.98,0.00027671,2]
[327423506,1716064259933,-1183.88,0.00027671,2]
[327423507,1716064259943,-686.46,0.00027671,2]
[327423508,1716064259952,-500.0,0.00027671,2]
[327423509,1716064259961,-506.05,0.00027671,2]
[327423510,1716064259971,-500.0,0.00027671,2]
[327423511,1716064259980,-1157.68,0.00027671,2]
[327423512,1716064259989,-500.0,0.00027671,2]
[327423513,1716064259998,-500.0,0.00027671,2]
[327423514,1716064260007,-500.0,0.00027671,2]
[327423515,1716064260016,-500.0,0.00027671,2]
[327423516,1716064260025,-500.0,0.00027671,2]
[327423517,1716064260037,-551.29,0.00027671,2]
[327423518,1716064260046,-794.29,0.00027671,2]
[327423519,1716064260056,-500.0,0.00027671,2]
[327423520,1716064260065,-500.0,0.00027671,2]
[327423521,1716064260074,-1468.53,0.00027671,2]
[327423522,1716064260083,-500.0,0.00027671,2]
[327423523,1716064260093,-500.0,0.00027671,2]
[327423524,1716064260102,-500.0,0.00027671,2]
[327423525,1716064260110,-500.0,0.00027671,2]
[327423526,1716064260120,-500.0,0.00027671,2]
[327423527,1716064260129,-500.0,0.00027671,2]
[327423528,1716064260139,-500.0,0.00027671,2]
[327423529,1716064260148,-511.59538215,0.00027671,2]
[327423530,1716064260157,-500.0,0.00027671,2]
[327423531,1716064260166,-552.01,0.00027671,2]
[327423532,1716064260175,-500.0,0.00027671,2]
[327423533,1716064260184,-500.0,0.00027671,2]
[327423534,1716064260193,-500.0,0.00027671,2]
[327423535,1716064260202,-500.0,0.00027671,2]
[327423536,1716064260211,-500.0,0.00027671,2]
[327423537,1716064260221,-500.0,0.00027671,2]
[327423538,1716064260230,-500.0,0.00027671,2]
[327423539,1716064260239,-500.0,0.00027671,2]
[327423540,1716064260248,-500.0,0.00027671,2]
[327423541,1716064260258,-151.0,0.00027671,7]
[327423542,1716064260267,-500.0,0.00027671,2]
[327423543,1716064260276,-1521.91,0.00027671,2]
[327423544,1716064260286,-1487.2,0.00027671,2]
[327423545,1716064260295,-500.0,0.00027671,2]
[327423546,1716064260304,-1083.77,0.00027671,2]
[327423547,1716064260313,-912.04,0.00027671,2]
[327423548,1716064260323,-500.0,0.00027671,2]
[327423549,1716064260331,-521.82501226,0.00027671,2]
[327423550,1716064260340,-500.0,0.00027671,2]
[327423551,1716064260349,-500.0,0.00027671,2]
[327423552,1716064260358,-500.0,0.00027671,2]
[327423553,1716064260367,-1984.31,0.00027671,2]
[327423554,1716064260377,-211.55403915,0.00027671,2]
[327423555,1716064260386,-500.0,0.00027671,2]
[327423556,1716064260395,-500.0,0.00027671,2]
[327423557,1716064260405,-500.0,0.00027671,2]
[327423558,1716064260414,-576.6,0.00027671,2]
[327423559,1716064260423,-500.0,0.00027671,2]
[327423560,1716064260432,-641.45,0.00027671,2]
[327423561,1716064260442,-500.0,0.00027671,2]
[327423562,1716064260451,-500.0,0.00027671,2]
[327423563,1716064260460,-500.0,0.00027671,2]
[327423564,1716064260470,-500.0,0.00027671,2]
[327423565,1716064260479,-500.0,0.00027671,2]
[327423566,1716064260488,-500.0,0.00027671,2]
[327423567,1716064260497,-538.64,0.00027671,2]
[327423568,1716064260507,-500.0,0.00027671,2]
[327423569,1716064260516,-530.74514929,0.00027671,2]
[327423570,1716064260525,-500.0,0.00027671,2]
[327423571,1716064260536,-500.0,0.00027671,2]
[327423572,1716064260545,-500.0,0.00027671,2]
[327423573,1716064260554,-500.0,0.00027671,2]
[327423574,1716064260563,-1410.69,0.00027671,2]
[327423575,1716064260572,-1397.66,0.00027671,2]
[327423576,1716064260582,-500.0,0.00027671,2]
[327423577,1716064260591,-948.25,0.00027671,2]
[327423578,1716064260601,-500.0,0.00027671,2]
[327423579,1716064260610,-962.85,0.00027671,2]
[327423580,1716064260621,-500.0,0.00027671,2]
[327423581,1716064260632,-151.0,0.00027671,7]
[327423582,1716064260642,-500.0,0.00027671,2]
[327423583,1716064260652,-500.0,0.00027671,2]
[327423584,1716064260661,-1221.27,0.00027671,2]
[327423585,1716064260670,-500.0,0.00027671,2]
[327423586,1716064260680,-151.0,0.00027671,7]
[327423587,1716064260689,-764.57,0.00027671,2]
[327423588,1716064260699,-500.0,0.00027671,2]
[327423589,1716064260708,-1371.78,0.00027671,2]
[327423590,1716064260718,-500.0,0.00027671,2]
[327423591,1716064260727,-404.269076,0.00027671,7]
[327423592,1716064260736,-500.0,0.00027671,2]
[327423593,1716064260745,-500.0,0.00027671,2]
[327423594,1716064260755,-500.0,0.00027671,2]
[327423595,1716064260764,-500.0,0.00027671,2]
[327423596,1716064260773,-500.0,0.00027671,2]
[327423597,1716064260782,-322.08,0.00027671,2]
[327423598,1716064260792,-404.269076,0.00027671,7]
[327423599,1716064260801,-500.0,0.00027671,2]
[327423600,1716064260811,-505.28520149,0.00027671,2]
[327423601,1716064260820,-990.76,0.00027671,2]
[327423602,1716064260829,-500.0,0.00027671,2]
[327423603,1716064260839,-500.0,0.00027671,2]
[327423604,1716064260849,-506.75260279,0.00027671,2]
[327423605,1716064260858,-500.0,0.00027671,2]
[327423606,1716064260868,-960.31,0.00027671,2]
[327423607,1716064260878,-500.0,0.00027671,2]
[327423608,1716064260887,-500.0,0.00027671,2]
[327423609,1716064260896,-500.0,0.00027671,2]
[327423610,1716064260906,-500.0,0.00027671,2]
[327423611,1716064260915,-871.34,0.00027671,2]
[327423612,1716064260924,-151.0,0.00027671,7]
[327423613,1716064260934,-500.0,0.00027671,2]
[327423614,1716064260943,-500.0,0.00027671,2]
[327423615,1716064260953,-500.0,0.00027671,2]
[327423616,1716064260962,-1158.36,0.00027671,2]
[327423617,1716064260971,-523.92638971,0.00027671,2]
[327423618,1716064260980,-500.0,0.00027671,2]
[327423619,1716064260989,-500.0,0.00027671,2]
[327423620,1716064260999,-500.0,0.00027671,2]
[327423621,1716064261057,-1181.96,0.00027671,2]
[327423622,1716064261066,-500.0,0.00027671,2]
[327423623,1716064261076,-506.43999409,0.00027671,2]
[327423624,1716064261085,-648.87002411,0.00027671,2]
[327423625,1716064261094,-531.75109047,0.00027671,2]
[327423626,1716064261103,-151.0,0.00027671,7]
[327423627,1716064261112,-500.0,0.00027671,2]
[327423628,1716064261121,-520.93233691,0.00027671,2]
[327423629,1716064261130,-500.0,0.00027671,2]
[327423630,1716064261140,-500.0,0.00027671,2]
[327423631,1716064261150,-500.0,0.00027671,2]
[327423632,1716064261159,-500.0,0.00027671,2]
[327423633,1716064261168,-998.19,0.00027671,2]
[327423634,1716064261177,-500.0,0.00027671,2]
[327423635,1716064261187,-500.0,0.00027671,2]
[327423636,1716064261198,-500.0,0.00027671,2]
[327423637,1716064261209,-151.0,0.00027671,7]
[327423638,1716064261219,-500.0,0.00027671,2]
[327423639,1716064261229,-503.31,0.00027671,2]
[327423640,1716064261239,-539.2,0.00027671,2]
[327423641,1716064261248,-151.0,0.00027671,7]
[327423642,1716064261258,-850.47,0.00027671,2]
[327423643,1716064261268,-500.0,0.00027671,2]
[327423644,1716064261277,-533.04,0.00027671,2]
[327423645,1716064261287,-500.0,0.00027671,2]
[327423646,1716064261296,-500.0,0.00027671,2]
[327423647,1716064261306,-500.0,0.00027671,2]
[327423648,1716064261315,-500.0,0.00027671,2]
[327423649,1716064261325,-500.0,0.00027671,2]
[327423650,1716064261334,-151.0,0.00027671,7]
[327423651,1716064261344,-500.0,0.00027671,2]
[327423652,1716064261353,-968.13,0.00027671,2]
[327423653,1716064261363,-592.44,0.00027671,2]
[327423654,1716064261372,-500.0,0.00027671,2]
[327423655,1716064261383,-508.51,0.00027671,2]
[327423656,1716064261392,-500.0,0.00027671,2]
[327423657,1716064261402,-500.0,0.00027671,2]
[327423658,1716064261412,-500.0,0.00027671,2]
[327423659,1716064261421,-500.0,0.00027671,2]
[327423660,1716064261431,-500.0,0.00027671,2]
[327423661,1716064261441,-500.0,0.00027671,2]
[327423662,1716064261450,-500.0,0.00027671,2]
[327423663,1716064261459,-500.0,0.00027671,2]
[327423664,1716064261469,-598.6,0.00027671,2]
[327423665,1716064261479,-500.0,0.00027671,2]
[327423666,1716064261488,-822.59,0.00027671,2]
[327423667,1716064261498,-500.0,0.00027671,2]
[327423668,1716064261507,-500.0,0.00027671,2]
[327423669,1716064261518,-500.0,0.00027671,2]
[327423670,1716064261528,-500.0,0.00027671,2]
[327423671,1716064261538,-150.0,0.00027671,2]
[327423672,1716064261548,-500.0,0.00027671,2]
[327423673,1716064261558,-500.0,0.00027671,2]
[327423674,1716064261567,-1006.53,0.00027671,2]
[327423675,1716064261577,-526.58232236,0.00027671,2]
[327423676,1716064261587,-500.0,0.00027671,2]
[327423677,1716064261596,-500.0,0.00027671,2]
[327423678,1716064261605,-500.0,0.00027671,2]
[327423679,1716064261615,-500.0,0.00027671,2]
[327423680,1716064261629,-500.0,0.00027671,2]
[327423681,1716064261639,-500.0,0.00027671,2]
[327423682,1716064261649,-500.0,0.00027671,2]
[327423683,1716064261658,-500.0,0.00027671,2]
[327423684,1716064261670,-151.0,0.00027671,7]
[327423685,1716064261680,-500.0,0.00027671,2]
[327423686,1716064261690,-500.0,0.00027671,2]
[327423687,1716064261699,-500.0,0.00027671,2]
[327423688,1716064261711,-500.0,0.00027671,2]
[327423689,1716064261721,-500.0,0.00027671,2]
[327423690,1716064261730,-755.48,0.00027671,2]
[327423691,1716064261740,-523.15,0.00027671,2]
[327423692,1716064261749,-500.0,0.00027671,2]
[327423693,1716064261759,-558.14,0.00027671,2]
[327423694,1716064261769,-500.0,0.00027671,2]
[327423695,1716064261779,-500.0,0.00027671,2]
[327423696,1716064261789,-536.58,0.00027671,2]
[327423697,1716064261798,-554.18,0.00027671,2]
[327423698,1716064261808,-500.0,0.00027671,2]
[327423699,1716064261818,-552.35002465,0.00027671,2]
[327423700,1716064261827,-514.17,0.00027671,2]
[327423701,1716064261837,-515.26294978,0.00027671,2]
[327423702,1716064261846,-500.0,0.00027671,2]
[327423703,1716064261856,-500.0,0.00027671,2]
[327423704,1716064261866,-500.0,0.00027671,2]
[327423705,1716064261877,-500.0,0.00027671,2]
[327423706,1716064261887,-533.4367862,0.00027671,2]
[327423707,1716064261897,-2116.27,0.00027671,2]
[327423708,1716064261906,-1193.51,0.00027671,2]
[327423709,1716064261918,-616.20935346,0.00027671,2]
[327423710,1716064261928,-500.0,0.00027671,2]
[327423711,1716064261938,-500.0,0.00027671,2]
[327423712,1716064261948,-654.66,0.00027671,2]
[327423713,1716064261958,-500.0,0.00027671,2]
[327423714,1716064261968,-500.0,0.00027671,2]
[327423715,1716064261978,-500.0,0.00027671,2]
[327423716,1716064261988,-500.0,0.00027671,2]
[327423717,1716064261998,-500.0,0.00027671,2]
[327423718,1716064262008,-500.0,0.00027671,2]
[327423719,1716064262019,-500.0,0.00027671,2]
[327423720,1716064262029,-500.0,0.00027671,2]
[327423721,1716064262039,-500.0,0.00027671,2]
[327423722,1716064262049,-500.0,0.00027671,2]
[327423723,1716064262059,-556.43312967,0.00027671,2]
[327423724,1716064262069,-1531.25,0.00027671,2]
[327423725,1716064262079,-500.0,0.00027671,2]
[327423726,1716064262090,-543.04537133,0.00027671,2]
[327423727,1716064262100,-500.0,0.00027671,2]
[327423728,1716064262110,-530.91527691,0.00027671,2]
[327423729,1716064262119,-358.54013289,0.00027671,2]
[327423730,1716064262131,-500.0,0.00027671,2]
[327423731,1716064262141,-500.0,0.00027671,2]
[327423732,1716064262150,-500.0,0.00027671,2]
[327423733,1716064262160,-500.0,0.00027671,2]
[327423734,1716064262171,-1533.67,0.00027671,2]
[327423735,1716064262181,-1277.25,0.00027671,2]
[327423736,1716064262191,-500.0,0.00027671,2]
[327423737,1716064262200,-500.0,0.00027671,2]
[327423738,1716064262210,-772.1,0.00027671,2]
[327423739,1716064262220,-500.0,0.00027671,2]
[327423740,1716064262231,-500.0,0.00027671,2]
[327423741,1716064262241,-500.0,0.00027671,2]
[327423742,1716064262250,-500.0,0.00027671,2]
[327423743,1716064262261,-500.0,0.00027671,2]
[327423744,1716064262272,-854.56,0.00027671,2]
[327423745,1716064262287,-500.0,0.00027671,2]
[327423746,1716064262300,-500.0,0.00027671,2]
[327423747,1716064262312,-500.0,0.00027671,2]
[327423748,1716064262326,-500.0,0.00027671,2]
[327423749,1716064262340,-1431.77,0.00027671,2]
[327423750,1716064262354,-616.06594,0.00027671,7]
[327423751,1716064262368,-500.0,0.00027671,2]
[327423752,1716064262381,-500.0,0.00027671,2]
[327423753,1716064262395,-500.0,0.00027671,2]
[327423754,1716064262408,-500.0,0.00027671,2]
[327423755,1716064262423,-500.0,0.00027671,2]
[327423756,1716064262437,-500.0,0.00027671,2]
[327423757,1716064262452,-616.06594,0.00027671,7]
[327423758,1716064262465,-816.54,0.00027671,2]
[327423759,1716064262481,-605.41,0.00027671,2]
[327423760,1716064262496,-500.0,0.00027671,2]
[327423761,1716064262509,-500.0,0.00027671,2]
[327423762,1716064262523,-194.21888144,0.00027671,2]
[327423763,1716064262538,-335.77114746,0.00027671,2]
[327423764,1716064262550,-500.0,0.00027671,2]
[327423765,1716064262561,-500.0,0.00027671,2]
[327423766,1716064262574,-500.0,0.00027671,2]
[327423767,1716064262587,-1909.53,0.00027671,2]
[327423768,1716064262598,-538.30505952,0.00027671,2]
[327423769,1716064262609,-500.0,0.00027671,2]
[327423770,1716064262625,-500.0,0.00027671,2]
[327423771,1716064262637,-500.0,0.00027671,2]
[327423772,1716064262649,-500.0,0.00027671,2]
[327423773,1716064262663,-500.0,0.00027671,2]
[327423774,1716064262676,-1758.53,0.00027671,2]
[327423775,1716064262688,-500.0,0.00027671,2]
[327423776,1716064262700,-918.98,0.00027671,2]
[327423777,1716064262715,-702.73,0.00027671,2]
[327423778,1716064262731,-500.0,0.00027671,2]
[327423779,1716064262750,-500.0,0.00027671,2]
[327423780,1716064262763,-732.95,0.00027671,2]
[327423781,1716064262776,-500.0,0.00027671,2]
[327423782,1716064262788,-500.0,0.00027671,2]
[327423783,1716064262801,-2683.89,0.00027671,2]
[327423784,1716064262813,-544.06,0.00027671,2]
[327423785,1716064262826,-500.0,0.00027671,2]
[327423786,1716064262839,-500.0,0.00027671,2]
[327423787,1716064262851,-722.8,0.00027671,2]
[327423788,1716064262863,-500.0,0.00027671,2]
[327423789,1716064262875,-500.0,0.00027671,2]
[327423790,1716064262889,-500.0,0.00027671,2]
[327423791,1716064262901,-151.0,0.00027671,7]
[327423792,1716064262913,-500.0,0.00027671,2]
[327423793,1716064262925,-500.0,0.00027671,2]
[327423794,1716064262938,-500.0,0.00027671,2]
[327423795,1716064262951,-2066.32,0.00027671,2]
[327423796,1716064262963,-151.0,0.00027671,7]
[327423797,1716064262975,-707.94,0.00027671,2]
[327423798,1716064262987,-500.0,0.00027671,2]
[327423799,1716064263000,-829.21473521,0.00027671,2]
[327423800,1716064264399,-2579.670644,0.00013337,2]
[327423801,1716064264409,-843.0,0.00017259,2]
[327423802,1716064264418,-500.0,0.00027397,2]
[327423803,1716064264427,-500.0,0.00027397,2]
[327423804,1716064264436,-326.08526479,0.00027671,2]
[327423805,1716064264445,-733.49,0.00027671,2]
[327423806,1716064264454,-500.0,0.00027671,2]
[327423807,1716064264463,-151.0,0.00027671,7]
[327423808,1716064264473,-500.0,0.00027671,2]
[327423809,1716064264481,-500.0,0.00027671,2]
[327423810,1716064264491,-500.0,0.00027671,2]
[327423811,1716064264500,-500.0,0.00027671,2]
[327423812,1716064264509,-500.0,0.00027671,2]
[327423813,1716064264518,-632.85,0.00027671,2]
[327423814,1716064264527,-500.0,0.00027671,2]
[327423815,1716064264540,-654.28,0.00027671,2]
[327423816,1716064264549,-500.0,0.00027671,2]
[327423817,1716064264559,-500.0,0.00027671,2]
[327423818,1716064264568,-151.0,0.00027671,7]
[327423819,1716064264577,-500.0,0.00027671,2]
[327423820,1716064264586,-500.0,0.00027671,2]
[327423821,1716064264596,-151.0,0.00027671,7]
[327423822,1716064264606,-1249.21,0.00027671,2]
[327423823,1716064264616,-500.0,0.00027671,2]
[327423824,1716064264630,-9291.32,0.00027671,2]
[327423825,1716064264639,-500.0,0.00027671,2]
[327423826,1716064264648,-500.0,0.00027671,2]
[327423827,1716064264657,-2480.39,0.00027671,2]
[327423828,1716064264670,-500.0,0.00027671,2]
[327423829,1716064264679,-500.0,0.00027671,2]
[327423830,1716064264688,-500.0,0.00027671,2]
[327423831,1716064264697,-500.0,0.00027671,2]
[327423832,1716064264708,-10427.19,0.00027671,2]
[327423833,1716064264718,-500.0,0.00027671,2]
[327423834,1716064264727,-500.0,0.00027671,2]
[327423835,1716064264736,-949.84,0.00027671,2]
[327423836,1716064264745,-500.0,0.00027671,2]
[327423837,1716064264754,-500.0,0.00027671,2]
[327423838,1716064264763,-500.0,0.00027671,2]
[327423839,1716064264773,-500.0,0.00027671,2]
[327423840,1716064264781,-500.0,0.00027671,2]
[327423841,1716064264790,-500.0,0.00027671,2]
[327423842,1716064264800,-500.0,0.00027671,2]
[327423843,1716064264808,-921.88,0.00027671,2]
[327423844,1716064264817,-500.0,0.00027671,2]
[327423845,1716064264826,-500.0,0.00027671,2]
[327423846,1716064264836,-500.0,0.00027671,2]
[327423847,1716064264845,-500.0,0.00027671,2]
[327423848,1716064264854,-500.0,0.00027671,2]
[327423849,1716064264863,-209.77,0.00027671,7]
[327423850,1716064264872,-500.0,0.00027671,2]
[327423851,1716064264881,-444.567529,0.00027671,7]
[327423852,1716064264890,-500.0,0.00027671,2]
[327423853,1716064264899,-500.0,0.00027671,2]
[327423854,1716064264908,-209.77,0.00027671,7]
[327423855,1716064264918,-510.99977238,0.00027671,2]
[327423856,1716064264927,-151.0,0.00027671,7]
[327423857,1716064264935,-444.567529,0.00027671,7]
[327423858,1716064264944,-151.0,0.00027671,7]
[327423859,1716064264954,-500.0,0.00027671,2]
[327423860,1716064264963,-500.0,0.00027671,2]
[327423861,1716064264972,-1095.76,0.00027671,2]
[327423862,1716064264981,-1134.01,0.00027671,2]
[327423863,1716064264990,-500.0,0.00027671,2]
[327423864,1716064264999,-500.0,0.00027671,2]
[327423865,1716064265008,-500.0,0.00027671,2]
[327423866,1716064265017,-500.0,0.00027671,2]
[327423867,1716064265027,-151.0,0.00027671,7]
[327423868,1716064265035,-500.0,0.00027671,2]
[327423869,1716064265045,-500.0,0.00027671,2]
[327423870,1716064265054,-585.07890668,0.00027671,2]
[327423871,1716064265063,-500.0,0.00027671,2]
[327423872,1716064265072,-500.0,0.00027671,2]
[327423873,1716064265081,-500.0,0.00027671,2]
[327423874,1716064265090,-500.0,0.00027671,2]
[327423875,1716064265099,-151.0,0.00027671,7]
[327423876,1716064265109,-500.0,0.00027671,2]
[327423877,1716064265119,-500.0,0.00027671,2]
[327423878,1716064265130,-500.0,0.00027671,2]
[327423879,1716064265139,-500.0,0.00027671,2]
[327423880,1716064265149,-500.0,0.00027671,2]
[327423881,1716064265158,-500.0,0.00027671,2]
[327423882,1716064265167,-500.0,0.00027671,2]
[327423883,1716064265176,-500.0,0.00027671,2]
[327423884,1716064265186,-500.0,0.00027671,2]
[327423885,1716064265195,-500.0,0.00027671,2]
[327423886,1716064265204,-500.0,0.00027671,2]
[327423887,1716064265214,-500.0,0.00027671,2]
[327423888,1716064265224,-500.0,0.00027671,2]
[327423889,1716064265233,-151.0,0.00027671,7]
[327423890,1716064265243,-2660.58,0.00027671,2]
[327423891,1716064265252,-500.0,0.00027671,2]
[327423892,1716064265261,-500.0,0.00027671,2]
[327423893,1716064265270,-500.0,0.00027671,2]
[327423894,1716064265280,-671.4,0.00027671,2]
[327423895,1716064265289,-500.0,0.00027671,2]
[327423896,1716064265298,-843.15,0.00027671,2]
[327423897,1716064265308,-1179.46,0.00027671,2]
[327423898,1716064265317,-500.0,0.00027671,2]
[327423899,1716064265327,-500.0,0.00027671,2]
[327423900,1716064265335,-500.0,0.00027671,2]
[327423901,1716064265345,-500.0,0.00027671,2]
[327423902,1716064265354,-500.0,0.00027671,2]
[327423903,1716064265363,-768.71,0.00027671,2]
[327423904,1716064265373,-500.0,0.00027671,2]
[327423905,1716064265383,-500.0,0.00027671,2]